fUSD/lending_fUSD_20240728
["ID","MTS","AMOUNT","RATE_DAILY","PERIOD"]
[333496398,1722209447709,-524.96875,0.00010997,2]
[333496399,1722209447719,-500.0,0.00010997,2]
[333496400,1722209447732,-503.96510455,0.00010997,2]
[333496401,1722209447742,-500.0,0.00010997,2]
[333496402,1722209447752,-500.0,0.00010997,2]
[333496403,1722209447761,-500.0,0.00010997,2]
[333496404,1722209447771,-500.0,0.00010997,2]
[333496405,1722209447781,-500.0,0.00010997,2]
[333496406,1722209447790,-500.0,0.00010997,2]
[333496407,1722209447800,-500.0,0.00010997,2]
[333496408,1722209447811,-506.66897143,0.00010997,2]
[333496409,1722209447820,-500.0,0.00010997,2]
[333496410,1722209447830,-164.12309325,0.00010997,2]
[333496411,1722209447839,-500.0,0.00010997,2]
[333496412,1722209447849,-508.41210082,0.00010997,2]
[333496413,1722209447858,-500.0,0.00010997,2]
[333496414,1722209447867,-500.0,0.00010997,2]
[333496415,1722209447877,-443.58479324,0.00010997,2]
[333496416,1722209447887,-500.0,0.00010997,2]
[333496417,1722209447897,-500.0,0.00010997,2]
[333496418,1722209447906,-500.0,0.00010997,2]
[333496419,1722209447916,-500.0,0.00010997,2]
[333496420,1722209447925,-500.0,0.00010997,2]
[333496421,1722209447935,-579.58,0.00010997,2]
[333496422,1722209447945,-500.0,0.00010997,2]
[333496423,1722209447955,-505.98972391,0.00010997,2]
[333496424,1722209447966,-500.0,0.00010997,2]
[333496425,1722209447975,-539.42888683,0.00010997,2]
[333496426,1722209447985,-523.28917337,0.00010997,2]
[333496427,1722209447995,-500.0,0.00010997,2]
[333496428,1722209448005,-500.0,0.00010997,2]
[333496429,1722209448015,-503.77441586,0.00010997,2]
[333496430,1722209448025,-500.0,0.00010997,2]
[333496431,1722209448034,-500.0,0.00010997,2]
[333496432,1722209448044,-512.83926109,0.00010997,2]
[333496433,1722209448054,-447.77224441,0.00010997,2]
[333496434,1722209448063,-505.53634467,0.00010997,2]
[333496435,1722209448073,-500.0,0.00010997,2]
[333496436,1722209448087,-500.0,0.00010997,2]
[333496437,1722209448155,-500.0,0.00010997,2]
[333496438,1722209448307,-500.0,0.00010997,2]
[333496439,1722209448407,-500.0,0.00010997,2]
[333496440,1722209448531,-500.0,0.00010997,2]
[333496441,1722209448635,-500.0,0.00010997,2]
[333496442,1722209448740,-500.0,0.00010997,2]
[333496443,1722209448838,-507.16568029,0.00010997,2]
[333496444,1722209448883,-528.7005071,0.00010997,2]
[333496445,1722209448929,-500.0,0.00010997,2]
[333496446,1722209448940,-500.0,0.00010997,2]
[333496447,1722209448950,-512.29,0.00010997,2]
[333496448,1722209448960,-500.0,0.00010997,2]
[333496449,1722209448969,-606.16045426,0.00010997,2]
[333496450,1722209448979,-580.03943396,0.00010997,2]
[333496451,1722209448989,-500.0,0.00010997,2]
[333496452,1722209448999,-500.0,0.00010997,2]
[333496453,1722209449008,-500.0,0.00010997,2]
[333496454,1722209449018,-335.73655868,0.00010997,2]
[333496455,1722209449027,-500.0,0.00010997,2]
[333496456,1722209449037,-503.52067894,0.00010997,2]
[333496457,1722209449046,-515.61452366,0.00010997,2]
[333496458,1722209449056,-500.0,0.00010997,2]
[333496459,1722209449067,-510.49378365,0.00010997,2]
[333496460,1722209449078,-546.24423486,0.00010997,2]
[333496461,1722209449087,-500.0,0.00010997,2]
[333496462,1722209449097,-500.0,0.00010997,2]
[333496463,1722209449107,-500.0,0.00010997,2]
[333496464,1722209449117,-500.0,0.00010997,2]
[333496465,1722209449126,-507.21051924,0.00010997,2]
[333496466,1722209449135,-500.0,0.00010997,2]
[333496467,1722209449144,-500.0,0.00010997,2]
[333496468,1722209449154,-500.0,0.00010997,2]
[333496469,1722209449163,-517.97,0.00010997,2]
[333496470,1722209449173,-518.49,0.00010997,2]
[333496471,1722209449183,-500.0,0.00010997,2]
[333496472,1722209449193,-500.0,0.00010997,2]
[333496473,1722209449203,-500.0,0.00010997,2]
[333496474,1722209449213,-510.56002071,0.00010997,2]
[333496475,1722209449223,-500.0,0.00010997,2]
[333496476,1722209449232,-500.0,0.00010997,2]
[333496477,1722209449242,-288.15,0.00010997,2]
[333496478,1722209449251,-500.0,0.00010997,2]
[333496479,1722209449260,-500.0,0.00010997,2]
[333496480,1722209449270,-500.0,0.00010997,2]
[333496481,1722209449280,-522.76378587,0.00010997,2]
[333496482,1722209449289,-500.0,0.00010997,2]
[333496483,1722209449299,-500.0,0.00010997,2]
[333496484,1722209449309,-500.0,0.00010997,2]
[333496485,1722209449318,-582.04819937,0.00010997,2]
[333496486,1722209449329,-500.0,0.00010997,2]
[333496487,1722209449339,-500.0,0.00010997,2]
[333496488,1722209449349,-500.0,0.00010997,2]
[333496489,1722209449359,-500.0,0.00010997,2]
[333496490,1722209449369,-500.0,0.00010997,2]
[333496491,1722209449381,-500.0,0.00010997,2]
[333496492,1722209449392,-505.89804411,0.00010997,2]
[333496493,1722209449402,-500.0,0.00010997,2]
[333496494,1722209449412,-500.0,0.00010997,2]
[333496495,1722209449422,-500.0,0.00010997,2]
[333496496,1722209449432,-500.0,0.00010997,2]
[333496497,1722209449441,-500.0,0.00010997,2]
[333496498,1722209449451,-500.0,0.00010997,2]
[333496499,1722209449460,-500.0,0.00010997,2]
[333496500,1722209449469,-500.0,0.00010997,2]
[333496501,1722209449480,-500.0,0.00010997,2]
[333496502,1722209449489,-500.0,0.00010997,2]
[333496503,1722209449499,-500.0,0.00010997,2]
[333496504,1722209449509,-500.0,0.00010997,2]
[333496505,1722209449518,-500.0,0.00010997,2]
[333496506,1722209449528,-500.0,0.00010997,2]
[333496507,1722209449537,-500.0,0.00010997,2]
[333496508,1722209449547,-500.0,0.00010997,2]
[333496509,1722209449557,-500.0,0.00010997,2]
[333496510,1722209449567,-500.0,0.00010997,2]
[333496511,1722209449579,-500.0,0.00010997,2]
[333496512,1722209449589,-531.56,0.00010997,2]
[333496513,1722209449600,-182.34114631,0.00010997,2]
[333496514,1722209449610,-500.0,0.00010997,2]
[333496515,1722209449621,-514.7904447,0.00010997,2]
[333496516,1722209449631,-500.0,0.00010997,2]
[333496517,1722209449641,-500.0,0.00010997,2]
[333496518,1722209449652,-500.0,0.00010997,2]
[333496519,1722209449662,-500.0,0.00010997,2]
[333496520,1722209449672,-500.0,0.00010997,2]
[333496521,1722209449682,-1138.34,0.00010997,2]
[333496522,1722209449692,-480.22112692,0.00010997,2]
[333496523,1722209449701,-500.0,0.00010997,2]
[333496524,1722209449711,-500.0,0.00010997,2]
[333496525,1722209449721,-500.0,0.00010997,2]
[333496526,1722209449735,-500.0,0.00010997,2]
[333496527,1722209449745,-500.0,0.00010997,2]
[333496528,1722209449754,-500.0,0.00010997,2]
[333496529,1722209449764,-782.65,0.00010997,2]
[333496530,1722209449775,-500.0,0.00010997,2]
[333496531,1722209449785,-500.0,0.00010997,2]
[333496532,1722209449795,-631.03,0.00010997,2]
[333496533,1722209449809,-500.0,0.00010997,2]
[333496534,1722209449819,-500.0,0.00010997,2]
[333496535,1722209449831,-500.0,0.00010997,2]
[333496536,1722209449840,-233.86415688,0.00010997,2]
[333496537,1722209449849,-500.0,0.00010997,2]
[333496538,1722209449859,-500.0,0.00010997,2]
[333496539,1722209449869,-500.0,0.00010997,2]
[333496540,1722209449879,-500.0,0.00010997,2]
[333496541,1722209449888,-596.90049165,0.00010997,2]
[333496542,1722209449898,-500.0,0.00010997,2]
[333496543,1722209449907,-500.0,0.00010997,2]
[333496544,1722209449917,-500.0,0.00010997,2]
[333496545,1722209449926,-500.0,0.00010997,2]
[333496546,1722209449934,-500.0,0.00010997,2]
[333496547,1722209449945,-500.0,0.00010997,2]
[333496548,1722209449955,-500.0,0.00010997,2]
[333496549,1722209449965,-500.0,0.00010997,2]
[333496550,1722209449976,-3079.23,0.00010997,2]
[333496551,1722209449986,-500.0,0.00010997,2]
[333496552,1722209449996,-694.98,0.00010997,2]
[333496553,1722209450005,-575.62835905,0.00010997,2]
[333496554,1722209450015,-500.0,0.00010997,2]
[333496555,1722209450025,-500.0,0.00010997,2]
[333496556,1722209450035,-500.0,0.00010997,2]
[333496557,1722209450045,-500.0,0.00010997,2]
[333496558,1722209450054,-500.0,0.00010997,2]
[333496559,1722209450064,-500.0,0.00010997,2]
[333496560,1722209450075,-500.0,0.00010997,2]
[333496561,1722209450085,-500.0,0.00010997,2]
[333496562,1722209450094,-500.0,0.00010997,2]
[333496563,1722209450104,-500.0,0.00010997,2]
[333496564,1722209450114,-500.0,0.00010997,2]
[333496565,1722209450123,-500.0,0.00010997,2]
[333496566,1722209450132,-500.0,0.00010997,2]
[333496567,1722209450142,-510.76031134,0.00010997,2]
[333496568,1722209450151,-500.0,0.00010997,2]
[333496569,1722209450161,-500.0,0.00010997,2]
[333496570,1722209450170,-601.07,0.00010997,2]
[333496571,1722209450179,-544.05700988,0.00010997,2]
[333496572,1722209450189,-500.0,0.00010997,2]
[333496573,1722209450198,-500.0,0.00010997,2]
[333496574,1722209450209,-500.0,0.00010997,2]
[333496575,1722209450218,-500.0,0.00010997,2]
[333496576,1722209450228,-545.8,0.00010997,2]
[333496577,1722209450237,-500.0,0.00010997,2]
[333496578,1722209450247,-500.0,0.00010997,2]
[333496579,1722209450256,-500.0,0.00010997,2]
[333496580,1722209450266,-504.08835741,0.00010997,2]
[333496581,1722209450276,-500.0,0.00010997,2]
[333496582,1722209450285,-500.0,0.00010997,2]
[333496583,1722209450295,-500.0,0.00010997,2]
[333496584,1722209450305,-500.0,0.00010997,2]
[333496585,1722209450315,-500.0,0.00010997,2]
[333496586,1722209450325,-500.0,0.00010997,2]
[333496587,1722209450335,-521.36,0.00010997,2]
[333496588,1722209450344,-500.0,0.00010997,2]
[333496589,1722209450354,-220.55633939,0.00010997,2]
[333496590,1722209450364,-500.0,0.00010997,2]
[333496591,1722209450373,-500.0,0.00010997,2]
[333496592,1722209450383,-539.24512319,0.00010997,2]
[333496593,1722209450392,-500.0,0.00010997,2]
[333496594,1722209450401,-500.0,0.00010997,2]
[333496595,1722209450411,-505.37876859,0.00010997,2]
[333496596,1722209450420,-500.0,0.00010997,2]
[333496597,1722209450430,-500.0,0.00010997,2]
[333496598,1722209450439,-500.0,0.00010997,2]
[333496599,1722209450448,-504.04027305,0.00010997,2]
[333496600,1722209450458,-500.0,0.00010997,2]
[333496601,1722209450468,-500.0,0.00010997,2]
[333496602,1722209450477,-500.0,0.00010997,2]
[333496603,1722209450487,-500.0,0.00010997,2]
[333496604,1722209450496,-500.0,0.00010997,2]
[333496605,1722209450506,-500.0,0.00010997,2]
[333496606,1722209450516,-500.0,0.00010997,2]
[333496607,1722209450526,-500.0,0.00010997,2]
[333496608,1722209450536,-500.0,0.00010997,2]
[333496609,1722209450546,-514.99,0.00010997,2]
[333496610,1722209450556,-188.41,0.00010997,2]
[333496611,1722209450566,-502.98691139,0.00010997,2]
[333496612,1722209450577,-500.0,0.00010997,2]
[333496613,1722209450587,-512.54484417,0.00010997,2]
[333496614,1722209450597,-500.0,0.00010997,2]
[333496615,1722209450607,-500.0,0.00010997,2]
[333496616,1722209450616,-500.0,0.00010997,2]
[333496617,1722209450626,-501.83288723,0.00010997,2]
[333496618,1722209450635,-502.62672506,0.00010997,2]
[333496619,1722209450645,-500.0,0.00010997,2]
[333496620,1722209450654,-500.0,0.00010997,2]
[333496621,1722209450663,-364.30092613,0.00010997,2]
[333496622,1722209450673,-500.0,0.00010997,2]
[333496623,1722209450683,-508.63752007,0.00010997,2]
[333496624,1722209450692,-500.0,0.00010997,2]
[333496625,1722209450701,-503.10940845,0.00010997,2]
[333496626,1722209450710,-500.0,0.00010997,2]
[333496627,1722209450720,-500.0,0.00010997,2]
[333496628,1722209450733,-500.0,0.00010997,2]
[333496629,1722209450742,-500.0,0.00010997,2]
[333496630,1722209450751,-500.0,0.00010997,2]
[333496631,1722209450760,-502.84462897,0.00010997,2]
[333496632,1722209450771,-501.19775829,0.00010997,2]
[333496633,1722209450780,-500.0,0.00010997,2]
[333496634,1722209450789,-501.93574853,0.00010997,2]
[333496635,1722209450800,-500.0,0.00010997,2]
[333496636,1722209450812,-500.0,0.00010997,2]
[333496637,1722209450821,-500.0,0.00010997,2]
[333496638,1722209450831,-502.35566403,0.00010997,2]
[333496639,1722209450840,-502.0757694,0.00010997,2]
[333496640,1722209450850,-500.0,0.00010997,2]
[333496641,1722209450859,-500.0,0.00010997,2]
[333496642,1722209450868,-507.4,0.00010997,2]
[333496643,1722209450877,-500.0,0.00010997,2]
[333496644,1722209450886,-500.0,0.00010997,2]
[333496645,1722209450895,-500.0,0.00010997,2]
[333496646,1722209450905,-442.36913268,0.00010997,2]
[333496647,1722209450914,-500.0,0.00010997,2]
[333496648,1722209450923,-502.56735424,0.00010997,2]
[333496649,1722209450933,-503.17383936,0.00010997,2]
[333496650,1722209450942,-504.19599589,0.00010997,2]
[333496651,1722209450951,-500.0,0.00010997,2]
[333496652,1722209450960,-500.0,0.00010997,2]
[333496653,1722209450970,-500.0,0.00010997,2]
[333496654,1722209450980,-500.0,0.00010997,2]
[333496655,1722209450990,-500.0,0.00010997,2]
[333496656,1722209451001,-500.0,0.00010997,2]
[333496657,1722209451010,-500.0,0.00010997,2]
[333496658,1722209451020,-512.93262454,0.00010997,2]
[333496659,1722209451030,-500.0,0.00010997,2]
[333496660,1722209451040,-500.0,0.00010997,2]
[333496661,1722209451050,-500.0,0.00010997,2]
[333496662,1722209451060,-500.0,0.00010997,2]
[333496663,1722209451071,-502.58795391,0.00010997,2]
[333496664,1722209451080,-500.0,0.00010997,2]
[333496665,1722209451091,-500.0,0.00010997,2]
[333496666,1722209451100,-500.0,0.00010997,2]
[333496667,1722209451111,-500.0,0.00010997,2]
[333496668,1722209451124,-486.03872034,0.00010997,2]
[333496669,1722209451134,-500.0,0.00010997,2]
[333496670,1722209451144,-247.97456707,0.00010997,2]
[333496671,1722209451153,-500.0,0.00010997,2]
[333496672,1722209451162,-500.0,0.00010997,2]
[333496673,1722209451173,-500.0,0.00010997,2]
[333496674,1722209451183,-500.0,0.00010997,2]
[333496675,1722209451194,-500.0,0.00010997,2]
[333496676,1722209451204,-500.0,0.00010997,2]
[333496677,1722209451215,-496.34695543,0.00010997,2]
[333496678,1722209451224,-500.0,0.00010997,2]
[333496679,1722209451235,-527.45,0.00010997,2]
[333496680,1722209451244,-791.39,0.00010997,2]
[333496681,1722209451254,-500.0,0.00010997,2]
[333496682,1722209451265,-500.0,0.00010997,2]
[333496683,1722209451275,-500.0,0.00010997,2]
[333496684,1722209451285,-500.0,0.00010997,2]
[333496685,1722209451295,-500.0,0.00010997,2]
[333496686,1722209451306,-507.43647486,0.00010997,2]
[333496687,1722209451317,-521.4434326,0.00010997,2]
[333496688,1722209451328,-554.25431521,0.00010997,2]
[333496689,1722209451338,-504.93076037,0.00010997,2]
[333496690,1722209451347,-614.48,0.00010997,2]
[333496691,1722209451358,-500.0,0.00010997,2]
[333496692,1722209451368,-505.38631221,0.00010997,2]
[333496693,1722209451378,-500.0,0.00010997,2]
[333496694,1722209451387,-504.81396216,0.00010997,2]
[333496695,1722209451397,-500.0,0.00010997,2]
[333496696,1722209451406,-500.0,0.00010997,2]
[333496697,1722209451415,-604.42705766,0.00010997,2]
[333496698,1722209451426,-503.6733931,0.00010997,2]
[333496699,1722209451435,-242.814028,0.00010997,2]
[333496700,1722209451445,-500.0,0.00010997,2]
[333496701,1722209451454,-502.30986701,0.00010997,2]
[333496702,1722209451463,-500.0,0.00010997,2]
[333496703,1722209451473,-502.82157003,0.00010997,2]
[333496704,1722209451482,-500.0,0.00010997,2]
[333496705,1722209451492,-150.0,0.00010997,2]
[333496706,1722209451502,-500.0,0.00010997,2]
[333496707,1722209451512,-339.83184046,0.00010997,2]
[333496708,1722209451521,-502.76192055,0.00010997,2]
[333496709,1722209451530,-500.0,0.00010997,2]
[333496710,1722209451540,-501.7471754,0.00010997,2]
[333496711,1722209451549,-500.0,0.00010997,2]
[333496712,1722209451558,-500.0,0.00010997,2]
[333496713,1722209451568,-500.0,0.00010997,2]
[333496714,1722209451578,-500.0,0.00010997,2]
[333496715,1722209451588,-503.31871512,0.00010997,2]
[333496716,1722209451597,-500.0,0.00010997,2]
[333496717,1722209451607,-500.0,0.00010997,2]
[333496718,1722209451616,-502.870478,0.00010997,2]
[333496719,1722209451626,-503.36792937,0.00010997,2]
[333496720,1722209451635,-500.0,0.00010997,2]
[333496721,1722209451644,-500.0,0.00010997,2]
[333496722,1722209451654,-505.66259635,0.00010997,2]
[333496723,1722209451663,-500.0,0.00010997,2]
[333496724,1722209451673,-498.74993416,0.00010997,2]
[333496725,1722209451683,-506.54486297,0.00010997,2]
[333496726,1722209451692,-500.0,0.00010997,2]
[333496727,1722209451854,-502.7445966,0.00010997,2]
[333496728,1722209451864,-501.87426082,0.00010997,2]
[333496729,1722209451873,-500.0,0.00010997,2]
[333496730,1722209451882,-500.0,0.00010997,2]
[333496731,1722209451891,-500.0,0.00010997,2]
[333496732,1722209451901,-418.28334774,0.00010997,2]
[333496733,1722209451910,-500.0,0.00010997,2]
[333496734,1722209451920,-506.91905753,0.00010997,2]
[333496735,1722209451929,-503.98054188,0.00010997,2]
[333496736,1722209451938,-505.29616718,0.00010997,2]
[333496737,1722209451949,-500.0,0.00010997,2]
[333496738,1722209451959,-502.26563501,0.00010997,2]
[333496739,1722209451970,-500.0,0.00010997,2]
[333496740,1722209451981,-500.0,0.00010997,2]
[333496741,1722209451992,-501.39709936,0.00010997,2]
[333496742,1722209452002,-500.0,0.00010997,2]
[333496743,1722209452014,-505.65213741,0.00010997,2]
[333496744,1722209452024,-467.98326394,0.00010997,2]
[333496745,1722209452034,-500.0,0.00010997,2]
[333496746,1722209452044,-502.26894618,0.00010997,2]
[333496747,1722209452053,-507.27513597,0.00010997,2]
[333496748,1722209452064,-500.0,0.00010997,2]
[333496749,1722209452074,-505.0660456,0.00010997,2]
[333496750,1722209452083,-502.32032787,0.00010997,2]
[333496751,1722209452093,-500.0,0.00010997,2]
[333496752,1722209452102,-500.0,0.00010997,2]
[333496753,1722209452112,-371.92925879,0.00010997,2]
[333496754,1722209452121,-193.59399835,0.00010997,2]
[333496755,1722209452133,-501.52496459,0.00010997,2]
[333496756,1722209452142,-164.00536902,0.00010997,2]
[333496757,1722209452152,-506.07280844,0.00010997,2]
[333496758,1722209452162,-506.30513419,0.00010997,2]
[333496759,1722209452173,-500.97948064,0.00010997,2]
[333496760,1722209452185,-503.34459652,0.00010997,2]
[333496761,1722209452196,-499.99907123,0.00010997,2]
[333496762,1722209452205,-500.0,0.00010997,2]
[333496763,1722209452216,-500.0,0.00010997,2]
[333496764,1722209452226,-503.43360576,0.00010997,2]
[333496765,1722209452237,-500.0,0.00010997,2]
[333496766,1722209452247,-508.15159995,0.00010997,2]
[333496767,1722209452257,-191.39,0.00010997,2]
[333496768,1722209452267,-500.0,0.00010997,2]
[333496769,1722209452276,-500.0,0.00010997,2]
[333496770,1722209452287,-500.0,0.00010997,2]
[333496771,1722209452296,-500.0,0.00010997,2]
[333496772,1722209452306,-500.0,0.00010997,2]
[333496773,1722209452316,-500.0,0.00010997,2]
[333496774,1722209452326,-500.0,0.00010997,2]
[333496775,1722209452334,-500.0,0.00010997,2]
[333496776,1722209452364,-239.08,0.00010997,2]
[333496777,1722209452374,-395.66745949,0.00010997,2]
[333496778,1722209452383,-501.0287792,0.00010997,2]
[333496779,1722209452392,-500.0,0.00010997,2]
[333496780,1722209452402,-500.0,0.00010997,2]
[333496781,1722209452412,-500.0,0.00010997,2]
[333496782,1722209452421,-500.0,0.00010997,2]
[333496783,1722209452430,-503.30734893,0.00010997,2]
[333496784,1722209452440,-425.30691126,0.00010997,2]
[333496785,1722209452449,-331.93071663,0.00010997,2]
[333496786,1722209452458,-500.0,0.00010997,2]
[333496787,1722209452468,-500.0,0.00010997,2]
[333496788,1722209452477,-500.0,0.00010997,2]
[333496789,1722209452487,-508.97996433,0.00010997,2]
[333496790,1722209452496,-500.0,0.00010997,2]
[333496791,1722209452505,-500.0,0.00010997,2]
[333496792,1722209452514,-500.0,0.00010997,2]
[333496793,1722209452523,-500.0,0.00010997,2]
[333496794,1722209452532,-500.0,0.00010997,2]
[333496795,1722209452543,-500.0,0.00010997,2]
[333496796,1722209452552,-500.0,0.00010997,2]
[333496797,1722209452561,-500.0,0.00010997,2]
[333496798,1722209452570,-500.0,0.00010997,2]
[333496799,1722209452580,-500.0,0.00010997,2]
[333496800,1722209452589,-500.0,0.00010997,2]
[333496801,1722209452598,-506.65557198,0.00010997,2]
[333496802,1722209452608,-500.0,0.00010997,2]
[333496803,1722209452618,-500.0,0.00010997,2]
[333496804,1722209452627,-553.17,0.00010997,2]
[333496805,1722209452636,-551.89575725,0.00010997,2]
[333496806,1722209452645,-500.0,0.00010997,2]
[333496807,1722209452655,-500.0,0.00010997,2]
[333496808,1722209452664,-500.0,0.00010997,2]
[333496809,1722209452673,-518.99,0.00010997,2]
[333496810,1722209452682,-500.0,0.00010997,2]
[333496811,1722209452691,-489.38033732,0.00010997,2]
[333496812,1722209452701,-500.0,0.00010997,2]
[333496813,1722209452710,-500.0,0.00010997,2]
[333496814,1722209452720,-532.86,0.00010997,2]
[333496815,1722209452733,-500.0,0.00010997,2]
[333496816,1722209452742,-500.0,0.00010997,2]
[333496817,1722209452751,-500.0,0.00010997,2]
[333496818,1722209452760,-500.0,0.00010997,2]
[333496819,1722209452771,-516.93452621,0.00010997,2]
[333496820,1722209452780,-500.0,0.00010997,2]
[333496821,1722209452789,-505.75224551,0.00010997,2]
[333496822,1722209452800,-500.0,0.00010997,2]
[333496823,1722209452809,-513.5118244,0.00010997,2]
[333496824,1722209452819,-501.83111005,0.00010997,2]
[333496825,1722209452829,-520.54602511,0.00010997,2]
[333496826,1722209452838,-500.0,0.00010997,2]
[333496827,1722209452848,-549.93990723,0.00010997,2]
[333496828,1722209452857,-505.78818271,0.00010997,2]
[333496829,1722209452865,-503.17417798,0.00010997,2]
[333496830,1722209452875,-507.98899828,0.00010997,2]
[333496831,1722209452884,-500.0,0.00010997,2]
[333496832,1722209452893,-500.0,0.00010997,2]
[333496833,1722209452902,-500.0,0.00010997,2]
[333496834,1722209452911,-500.0,0.00010997,2]
[333496835,1722209452921,-505.47834161,0.00010997,2]
[333496836,1722209452930,-151.0,0.00010997,2]
[333496837,1722209452939,-504.43,0.00010997,2]
[333496838,1722209452948,-525.59,0.00010997,2]
[333496839,1722209452957,-151.0,0.00010997,2]
[333496840,1722209452967,-500.0,0.00010997,2]
[333496841,1722209452976,-504.35645892,0.00010997,2]
[333496842,1722209452985,-151.0,0.00010997,2]
[333496843,1722209452994,-515.96359481,0.00010997,2]
[333496844,1722209453004,-500.0,0.00010997,2]
[333496845,1722209453013,-505.81149923,0.00010997,2]
[333496846,1722209453022,-505.29695596,0.00010997,2]
[333496847,1722209453032,-504.15199062,0.00010997,2]
[333496848,1722209453041,-500.0,0.00010997,2]
[333496849,1722209453050,-504.05659954,0.00010997,2]
[333496850,1722209453060,-500.0,0.00010997,2]
[333496851,1722209453069,-503.52980608,0.00010997,2]
[333496852,1722209453078,-500.0,0.00010997,2]
[333496853,1722209453088,-507.32277009,0.00010997,2]
[333496854,1722209453097,-500.0,0.00010997,2]
[333496855,1722209453106,-318.72838505,0.00010997,2]
[333496856,1722209453115,-500.0,0.00010997,2]
[333496857,1722209453124,-500.0,0.00010997,2]
[333496858,1722209453134,-500.0,0.00010997,2]
[333496859,1722209453143,-241.478896,0.00010997,2]
[333496860,1722209453152,-500.62631733,0.00010997,2]
[333496861,1722209453162,-500.0,0.00010997,2]
[333496862,1722209453171,-151.0,0.00010997,2]
[333496863,1722209453180,-241.478896,0.00010997,2]
[333496864,1722209453190,-500.0,0.00010997,2]
[333496865,1722209453199,-502.00427278,0.00010997,2]
[333496866,1722209453208,-151.0,0.00010997,2]
[333496867,1722209453218,-506.22030691,0.00010997,2]
[333496868,1722209453227,-504.47065645,0.00010997,2]
[333496869,1722209453236,-500.0,0.00010997,2]
[333496870,1722209453245,-151.0,0.00010997,2]
[333496871,1722209453254,-500.0,0.00010997,2]
[333496872,1722209453263,-500.0,0.00010997,2]
[333496873,1722209453272,-503.14686836,0.00010997,2]
[333496874,1722209453281,-500.0,0.00010997,2]
[333496875,1722209453290,-500.0,0.00010997,2]
[333496876,1722209453299,-500.0,0.00010997,2]
[333496877,1722209453309,-500.0,0.00010997,2]
[333496878,1722209453318,-500.0,0.00010997,2]
[333496879,1722209453328,-500.0,0.00010997,2]
[333496880,1722209453337,-184.967819,0.00010997,2]
[333496881,1722209453346,-500.0,0.00010997,2]
[333496882,1722209453356,-151.0,0.00010997,2]
[333496883,1722209453366,-184.967819,0.00010997,2]
[333496884,1722209453375,-534.93394803,0.00010997,2]
[333496885,1722209453385,-502.9546087,0.00010997,2]
[333496886,1722209453394,-151.0,0.00010997,2]
[333496887,1722209453404,-193.215284,0.00010997,2]
[333496888,1722209453413,-502.74073233,0.00010997,2]
[333496889,1722209453422,-504.41504907,0.00010997,2]
[333496890,1722209453432,-500.0,0.00010997,2]
[333496891,1722209453441,-597.10833693,0.00010997,2]
[333496892,1722209453451,-193.215284,0.00010997,2]
[333496893,1722209453461,-503.84188374,0.00010997,2]
[333496894,1722209453470,-504.06071975,0.00010997,2]
[333496895,1722209453479,-500.0,0.00010997,2]
[333496896,1722209453488,-505.21557433,0.00010997,2]
[333496897,1722209453498,-317.38114196,0.00010997,2]